Workbook

Sheet FORSIDE
D5: PRODUKTIVITETS- OG KOSTNADSKALKULATOR | L5: Revidert 12.01.2023 | O5: Versjon 3.4
C9: Produktivitets- og kostnadskalkulator
C11: Denne kalkulatoren en ment som en støtte i produksjonsplanleggingen. Ut fra skogtype, driftsforhold og tilrettelagte forhold gir kalkulatoren en prognose for
C12: - Produktivitet
C13: - Forventet ferdigdato
C14: - Driftskostnad basert på produktivitet og timekostnad
D22: Driftsstørrelse | F22: i | G22: 800 | H22: m³ | J22: Overflatestruktur i terrenget | L22: i | M22: 3 | N22: =LOOKUP(M22,Tabell2[Y = overflatestruktur klasser],Tabell2[Kjøreforhold]) -> Middels gode
J23: Overflatestruktur på eventuell traktorvei
D24: Volum pr dekar | F24: i | G24: 25 | H24: m³/daa | L24: i | M24: 3 | N24: =LOOKUP(M24,HJELPETABELLER!B7:B11,HJELPETABELLER!C7:C11) -> Middels gode
D26: Tømmertrær pr dekar | F26: i | G26: 100 | H26: tre/daa | J26: Helling på hogstfeltet | L26: i | M26: 2 | N26: =LOOKUP(M26,Tabell3[L = helningsklasser],Tabell3[% helning]) -> 10-20 %
D28: Ryddetrær pr dekar | F28: i | G28: 150 | H28: tre/daa | J28: Helling på eventuell traktorvei | L28: i | M28: 2 | N28: =LOOKUP(M28,Tabell3[L = helningsklasser],Tabell3[% helning]) -> 10-20 %
D30: Hogstmaskin - oppstartsdato | F30: i | G30: 2023-02-11 | H30: dato | J30: Kjøreavstand i terrenget | L30: i | M30: 200 | N30: meter
D32: Hogstmaskin - timer pr skift | F32: i | G32: 8 | H32: timer | J32: Kjøreavstand på eventuell vei | L32: i | M32: 500 | N32: meter
D34: Hogstmaskin - skift pr dag | F34: i | G34: 1 | H34: stk | J34: Lasstørrelse | L34: i | M34: 20 | N34: m³
D36: Lassbærer - oppstartsdato | F36: i | G36: 2023-02-17 | H36: dato | J36: Antall sortiment | L36: i | M36: 5 | N36: stk
D38: Lassbærer - timer pr skift | F38: i | G38: 7.5 | H38: timer | J38: Timekostnad - hogstmaskin | L38: i | M38: 1680 | N38: kr/G15-time
D40: Lassbærer - skift pr dag | F40: i | G40: 1 | H40: stk | J40: Timekostnad - lassbærer | L40: i | M40: 1220 | N40: kr/G15-time
C43: Vi ønsker å gjøre denne kalkulatoren bedre. Har du kommentarer; - send dem til post@skogkurs.no. | M43: Del denne siden:
C44: Grunnlaget for kalkylene er SKOGFORSK sine Underlag til produksjonsnormer for skotare (Torbjörn Brunberg, 2004) og
C45: Underlag for produktionsnormer for extra stora engrepsskordare (Torbjörn Brunberg, 2007). | J45: Normene er justert med
C46: norske studier gjort av NIBIO, NFR 225329, Sustainable utilization of forest resources in Norway (Bruce Talbot, 2016).
C48: Maskinkostnadene har som grunnlag 2000 timer/år, basert på beregnede kostnader fra Prosjekt Klimatre,
C49: justert med Kostnadsindeks for skogsmaskiner pr 3. kvartal 2022.

Sheet NORSKE TILPASNINGER

Sheet DASHBORD
C5: HOGSTMASKIN | P5: LASSBÆRER
C6: TOTAL FREMDRIFT MOT MÅLET: | P6: TOTAL FREMDRIFT MOT MÅLET:
C7: STARTDATO | D7: ANTALL M³ | E7: TIMER PR SKIFT | F7: SKIFT PR DAG | P7: STARTDATO | Q7: ANTALL M³ | R7: TIMER PR SKIFT | S7: SKIFT PR DAG
C8: =FORSIDE!G30 -> 2023-02-11 | D8: =FORSIDE!G22 -> 800 | E8: =FORSIDE!G32 -> 8 | F8: =FORSIDE!G34 -> 1 | H8: Prestasjon | J8: Måler | P8: =FORSIDE!G36 -> 2023-02-17 | Q8: =D8 -> 800 | R8: =FORSIDE!G38 -> 7.5 | S8: =FORSIDE!G40 -> 1 | U8: Prestasjon | W8: Måler
H9: Start | I9: 0 | J9: Verdi | K9: ='PROD.NORMER TABELL'!O24 -> 19.87970369 | U9: Start | V9: 0 | W9: Verdi | X9: ='PROD.NORMER TABELL'!I29 -> 15.36394805
C10: FORVENTET SLUTTDATO | D10: ANTALL DAGSVERK | F10: ANTALL SKIFT | H10: Rød | I10: 30 | J10: Nål | K10: 1 | P10: FORVENTET SLUTTDATO | Q10: ANTALL DAGSVERK | S10: ANTALL SKIFT | U10: Rød | V10: 30 | W10: Nål | X10: 1
C11: 2022-09-23 | D11: =(D8/'PROD.NORMER TABELL'!O24)/(E8*F8) -> 5.030256061 | F11: =(D8/'PROD.NORMER TABELL'!I16)/E8 -> 5.844256061 | H11: Gul | I11: 30 | J11: Slutt | K11: =100-(K9+K10) -> 79.12029631 | P11: 2022-10-12 | Q11: =(Q8/'PROD.NORMER TABELL'!I29)/(R8*S8) -> 6.942659943 | S11: =(Q8/'PROD.NORMER TABELL'!I29)/R8 -> 6.942659943 | U11: Gul | V11: 30 | W11: Slutt | X11: =100-(X9+X10) -> 83.63605195
H12: Grønn | I12: 40 | U12: Grønn | V12: 40
C13: NB: FLYTTE- OG OPPSTARTSTID KOMMER I TILLEGG! | H13: Slutt | I13: 100 | P13: NB: FLYTTE- OG OPPSTARTSTID KOMMER I TILLEGG! | U13: Slutt | V13: 100
C16: MASKINKOSTNAD | D16: PR G0-TIME | E16: PR G15-TIME | G16: KOSTNAD PR M3 | P16: MASKINKOSTNAD | Q16: PR G0-TIME | R16: PR G15-TIME | T16: KOSTNAD PR M3
C17: KR PR TIME | D17: =E17*'PROD.NORMER TABELL'!H16/'PROD.NORMER TABELL'!I16 -> 2016 | E17: =FORSIDE!M38 -> 1680 | G17: =E17/K9 -> 84.50830183 | P17: KR PR TIME | Q17: =R17*'PROD.NORMER TABELL'!H29/'PROD.NORMER TABELL'!I29 -> 1525 | R17: =FORSIDE!M40 -> 1220 | T17: =R17/X9 -> 79.4066731
C22: TRESTØRRELSE | D22: M3 PR TRE
C23: MIDDEL-DIMENSJON | D23: =FORSIDE!G24/FORSIDE!G26 -> 0.25

Sheet PROD.NORMER TABELL
B4: PRODUKSJONSNORMER PR SEPTEMBER 2016
D6: Tall fra beregning | F6: Omregningsfaktorer | H6: Omregnet tidsbruk | M6: Tall fra beregning | N6: Omregningsfaktorer | O6: Omregnet tidsbruk | R6: Tall fra beregning | S6: Omregningsfaktorer | T6: Omregnet tidsbruk
D8: sekund/tre | E8: sekund/tre | F8: Hogstmaskin | G8: Lassbærer | M8: sekund/tre | N8: Hogstmaskin | R8: sekund/tre | S8: Hogstmaskin
D9: G0-timer | E9: G15-timer | H9: G0-timer | I9: G15-timer | M9: G0-timer | O9: G0-timer | P9: G15-timer | R9: G0-timer | T9: G0-timer | U9: G15-timer
B10: HOGST-MASKIN | C10: T1 Forflytning | D10: ='HOGSTMASKIN (G0)'!D30 -> 3.16692046 | H10: =D10 -> 3.16692046 | I10: =D10*F$12 -> 3.800304552 | M10: ='HOGSTMASKIN (G0)'!D30 -> 3.16692046 | O10: =M10 -> 3.16692046 | P10: =M10*N$12 -> 3.800304552 | R10: ='HOGSTMASKIN (G0)'!D30 -> 3.16692046 | T10: =R10 -> 3.16692046 | U10: =R10*S$12 -> 3.800304552
C11: T2 Felling og opparbeiding | D11: ='HOGSTMASKIN (G0)'!K18 -> 36.465 | F11: Til G15-timer: | H11: =D11 -> 36.465 | I11: =D11*F$12 -> 43.758 | M11: ='HOGSTMASKIN (G0)'!Q18 -> 30.36 | N11: Til G15-timer: | O11: =M11 -> 30.36 | P11: =M11*N$12 -> 36.432 | R11: ='HOGSTMASKIN (G0)'!W18 -> 19.65 | S11: Til G15-timer: | T11: =R11 -> 19.65 | U11: =R11*S$12 -> 23.58
C12: T3 Øvrig tid | D12: ='HOGSTMASKIN (G0)'!K30 -> 1.5 | F12: 1.2 | H12: =D12 -> 1.5 | I12: =D12*F$12 -> 1.8 | M12: ='HOGSTMASKIN (G0)'!K30 -> 1.5 | N12: =F12 -> 1.2 | O12: =M12 -> 1.5 | P12: =M12*N$12 -> 1.8 | R12: ='HOGSTMASKIN (G0)'!K30 -> 1.5 | S12: =F12 -> 1.2 | T12: =R12 -> 1.5 | U12: =R12*S$12 -> 1.8
C13: TR1 Ryddetrær *) | H13: =D13 -> 0 | I13: =D13*F$12 -> 0 | O13: =M13 -> 0 | P13: =M13*N$12 -> 0 | T13: =R13 -> 0 | U13: =R13*S$12 -> 0
C14: TR2 Ryddetrær *) | D14: ='HOGSTMASKIN (G0)'!AD26 -> 2.7 | H14: =D14 -> 2.7 | I14: =D14*F$12 -> 3.24 | K14: *) Bare én av disse skal brukes | M14: ='HOGSTMASKIN (G0)'!AD26 -> 2.7 | O14: =M14 -> 2.7 | P14: =M14*N$12 -> 3.24 | R14: ='HOGSTMASKIN (G0)'!AD26 -> 2.7 | T14: =R14 -> 2.7 | U14: =R14*S$12 -> 3.24
C15: SUM produksjon sekunder/tre | H15: =SUM(H10:H14) -> 43.83192046 | I15: =SUM(I10:I14) -> 52.59830455 | O15: =SUM(O10:O14) -> 37.72692046 | P15: =SUM(P10:P14) -> 45.27230455 | T15: =SUM(T10:T14) -> 27.01692046 | U15: =SUM(U10:U14) -> 32.42030455
C16: SUM produksjon m³/time | H16: =3600/(H15/'HOGSTMASKIN (G0)'!$D$27) -> 20.53298123 | I16: =3600/(I15/'HOGSTMASKIN (G0)'!$D$27) -> 17.11081769 | O16: =3600/(O15/'HOGSTMASKIN (G0)'!$D$27) -> 23.85564443 | P16: =3600/(P15/'HOGSTMASKIN (G0)'!$D$27) -> 19.87970369 | T16: =3600/(T15/'HOGSTMASKIN (G0)'!$D$27) -> 33.31245696 | U16: =3600/(U15/'HOGSTMASKIN (G0)'!$D$27) -> 27.7603808
D18: Tall fra beregning | F18: Omregningsfaktorer | H18: Omregnet tidsbruk
D20: sekund/tre | E20: sekund/tre | F20: Hogstmaskin | G20: Lassbærer
D21: G0-timer | E21: G15-timer | H21: G0-timer | I21: G15-timer
B22: LASSBÆRER | C22: T4 Terminaltid | E22: ='LASSBÆRER (G15)'!D27 -> 31.01619327 | H22: =E22*G$25 -> 24.81295461 | I22: =E22 -> 31.01619327
C23: T51 Kjøring i terrenget | E23: ='LASSBÆRER (G15)'!K20 -> 6.696428571 | G23: Til G0-timer: | H23: 5.357142857 | I23: 6.696428571
C24: T52 Kjøring på traktor- eller driftsveg | E24: ='LASSBÆRER (G15)'!K37 -> 16.74107143 | H24: 13.39285714 | I24: 16.74107143 | L24: Cellekontroll: | M24: 2 | O24: =CHOOSE(M24,I16,P16,U16) -> 19.87970369
C25: T6 Sortimenttid | E25: ='LASSBÆRER (G15)'!R13 -> -3 | G25: 0.8 | H25: -2.4 | I25: -3
C26: T7 Sortering | E26: ='LASSBÆRER (G15)'!R24 -> 6 | H26: 4.8 | I26: 6
C27: T8 Øvrig tid | E27: ='LASSBÆRER (G15)'!R34 -> 1.125 | H27: 0.9 | I27: 1.125
C28: SUM produksjon sekunder/tre | H28: =SUM(H22:H27) -> 46.86295461 | I28: =SUM(I22:I27) -> 58.57869327
C29: SUM produksjon m³/time | H29: =3600/(H28/'HOGSTMASKIN (G0)'!$D$27) -> 19.20493506 | I29: =3600/(I28/'HOGSTMASKIN (G0)'!$D$27) -> 15.36394805

Sheet HOGSTMASKIN (G0)
B4: PRODUKSJONSNORMER PR FOR HOGSTMASKIN
B6: T1 | C6: Forflytning (kjøring mellom trær) | I6: T21 | J6: Felling og opparbeiding - dal og fjellskog | O6: T22 | P6: Felling og opparbeiding - lavlandsskog | U6: T23 | V6: Felling og opparbeiding - superskog | AB6: TR1 | AC6: Ryddetrær
F7: G0-cmin/tre | J7: Bruce og MaxiFleet | M7: G0-cmin/tre | P7: Skogkunnskap.se | S7: G0-cmin/tre | V7: Brunberg | Y7: G0-cmin/tre | AC7: (Alternativ 1) | AF7: G0-cmin/tre
J9: "Grunntid" (ligger fast) | K9: 21.3 | P9: "Grunntid" (ligger fast) | Q9: 30.3 | V9: "Grunntid" (ligger fast) | W9: 24
C10: Formelen kan deles opp, slik at vi først beregner H: | J10: "Økningsfaktor" (ligger fast) | K10: 157.9 | P10: "Økningsfaktor" (ligger fast) | Q10: 81.2 | V10: "Økningsfaktor" (ligger fast) | W10: 35 | AC10: "Grunntid" (ligger fast) | AD10: 10.6
I11: M = | J11: Middelstamme | K11: =D26/D22 -> 0.25 | L11: m³/tre | O11: M = | P11: Middelstamme | Q11: =K11 -> 0.25 | R11: m³/tre | U11: M = | V11: Middelstamme | W11: =K11 -> 0.25 | X11: m³/tre
J13: Dobbelsaging | K13: 28 | L13: 0 | P13: Dobbelsaging | Q13: 28 | R13: 0 | V13: Dobbelsaging | W13: 28 | X13: 0
J14: Hinder ved felling | K14: 15 | L14: 0 | P14: Hinder ved felling | Q14: 15 | R14: 0 | V14: Hinder ved felling | W14: 15 | X14: 0
J15: Vanskelig opparbeiding | K15: 37 | L15: 0 | P15: Vanskelig opparbeiding | Q15: 37 | R15: 0 | V15: Vanskelig opparbeiding | W15: 37 | X15: 0
J17: Tidsforbruk/tre | K17: =(K9+(K10*K11)+(K13*L13)+(K14*L14)+(K15*L15))/100 -> 0.60775 | L17: minutter/tre | P17: Tidsforbruk/tre | Q17: =(Q9+(Q10*Q11)+(Q13*R13)+(Q14*R14)+(Q15*R15))/100 -> 0.506 | R17: minutter/tre | V17: Tidsforbruk/tre | W17: =(W9+(W10*W11)+(W13*X13)+(W14*X14)+(W15*X15))/100 -> 0.3275 | X17: minutter/tre
J18: Tidsforbruk/tre | K18: =K17*100*0.6 -> 36.465 | L18: sek/tre (G0-timer) | P18: Tidsforbruk/tre | Q18: =Q17*100*0.6 -> 30.36 | R18: sek/tre (G0-timer) | V18: Tidsforbruk/tre | W18: =W17*100*0.6 -> 19.65 | X18: sek/tre (G0-timer) | AB18: TR2 | AC18: Ryddetrær
AC19: (Alternativ 2) | AF19: G0-sekund/tre
B20: S = | C20: Strok- eller arbeidsbredde | D20: 13.3 | E20: m
B21: K = | C21: Uttrykk for kjørehastigheten | D21: 25.9 | E21: m/min | I21: T3 | J21: Øvrig tid | O21: T3 | P21: Øvrig tid | U21: T3 | V21: Øvrig tid
B22: U = | C22: Uttak | D22: =FORSIDE!G26 -> 100 | E22: tre/daa | M22: G0-cmin/tre | S22: G0-cmin/tre | Y22: G0-cmin/tre | AC22: Ryddetid i sekund/ryddetre | AD22: 1.8
B23: Y = | C23: Overflatestruktur | D23: =FORSIDE!M22 -> 3 | E23: klasse fra tabell | AB23: U = | AC23: uttak, trær/daa | AD23: =D22 -> 100 | AE23: tre/daa
B24: L = | C24: Helning | D24: =FORSIDE!M26 -> 2 | E24: klasse fra tabell | AB24: D = | AC24: ryddetrær, trær/daa | AD24: =FORSIDE!G28 -> 150 | AE24: tre/daa
B25: H = | C25: Reell kjørehastighet | D25: =D21*(1+(5/D22)-(0.1*D23)-(0.1*D24)) -> 14.245 | E25: m/min
C26: Volum pr dekar | D26: =FORSIDE!G24 -> 25 | E26: m³/daa | J26: Hvor mye tid | K26: 1.5 | L26: sekund/tre | P26: Hvor mye tid | Q26: 1.5 | R26: sekund/tre | V26: Hvor mye tid | W26: 1.5 | X26: sekund/tre | AC26: Tidsforbruk/tre | AD26: =(AD24*AD22/AD23) -> 2.7 | AE26: sek/tre (G0-timer)
C27: Middelstamme | D27: =D26/D22 -> 0.25 | E27: m³/tre
C29: Tidsforbruk/tre | D29: =1000/(D20*D25*D22) -> 0.05278200767 | E29: minutter/tre
C30: Tidsforbruk/tre | D30: =D29*100*0.6 -> 3.16692046 | E30: sek/tre (G0-timer) | J30: Tidsforbruk/tre | K30: =K26 -> 1.5 | L30: sek/tre (G0-timer) | P30: Tidsforbruk/tre | Q30: =Q26 -> 1.5 | R30: sek/tre (G0-timer) | V30: Tidsforbruk/tre | W30: =W26 -> 1.5 | X30: sek/tre (G0-timer)

Sheet LASSBÆRER (G15)
B4: PRODUKSJONSNORMER PR FOR LASSBÆRER
B6: T4 | C6: Terminaltid | I6: T51 | J6: Terrengkjøring (utenom planert drifts- eller traktorveg) | P6: T6 | Q6: Sortimenttid (et fratrekk for store trær, med tak på 0,5 m³)
S7: G15-min/m³
E8: G15-min/m³ | L8: G15-min/m³
P9: M = | Q9: Middeltre | R9: =D21/D20 -> 0.25 | S9: m³/tre
Q11: Tidsforbruk pr m³ | R11: =IF(R9<0.5,0.05-R9,0.05-0.5) -> -0.2 | S11: min/m³ (G15-timer)
I12: A = | J12: Kjøreavstand èn vei | K12: =FORSIDE!M30 -> 200 | L12: meter
I13: Y = | J13: Overflatestruktur (klasse) | K13: ='HOGSTMASKIN (G0)'!D23 -> 3 | L13: (hentet fra hogstmaskin) | Q13: Tidsforbruk, omregnet til sek/tre | R13: =((R11*100)*0.6)*($D$21/$D$20) -> -3 | S13: sek/tre (G15-timer)
I14: B = | J14: Hellingsklasse | K14: ='HOGSTMASKIN (G0)'!D24 -> 2 | L14: (hentet fra hogstmaskin)
I15: H = | J15: Kjørehastighet | K15: =75-(8.2*K13)-(1.4*(K14*K14)) -> 44.8 | L15: meter/G15-min
I16: L = | J16: Lasstørrelse | K16: =FORSIDE!M34 -> 20 | L16: m³/lass | P16: T7 | Q16: Sortering
P17: NB: Et sortiment som utgjør mindre enn 5 % av totalen, skal bare telle 0,6.
B18: K1 = | C18: En konstant (ligger fast) | D18: 1.4 | E18: KORRIGERT | J18: Tidsforbruk pr m³ | K18: =(2*K12)/(K15*K16) -> 0.4464285714 | L18: min/m³ (G15-timer) | S18: G15-min/m³
B19: K2 = | C19: Varierer med maskinstørrelsen / hogstform | D19: 0.73 | E19: meter/min
B20: U = | C20: Uttak, stammer pr dekar (hentet fra hogstmaskinarket): | D20: ='HOGSTMASKIN (G0)'!D22 -> 100 | E20: tre/daa | J20: Tidsforbruk, omregnet til sek/tre | K20: =((K18*100)*0.6)*($D$21/$D$20) -> 6.696428571 | L20: sek/tre (G15-timer) | P20: S = | Q20: Antall sortiment | R20: =FORSIDE!M36 -> 5 | S20: stk
B21: UT = | C21: Uttak, m³ pr deker | D21: ='HOGSTMASKIN (G0)'!D26 -> 25 | E21: m³/daa
B22: a | C22: Konstant (se ovenfor) | D22: 5.7 | Q22: Tidsforbruk pr m³ | R22: =-0.1+0.1*R20 -> 0.4 | S22: min/m³ (G15-timer)
B23: b | C23: Konstant (se ovenfor) | D23: 11.45 | I23: T52 | J23: Kjøring på planert drifts- eller traktorveg
Q24: Tidsforbruk, omregnet til sek/tre | R24: =((R22*100)*0.6)*($D$21/$D$20) -> 6 | S24: sek/tre (G15-timer)
C25: Tidsforbruk pr m³ | D25: =D18*(D22+(D19*D21*10)+(D23*SQRT(D21*10)))/(D21*10) -> 2.067746218 | E25: min/m³ (G15-timer) | L25: G15-min/m³
C27: Tidsforbruk, omregnet til sek/tre | D27: =((D25*100)*0.6)*($D$21/$D$20) -> 31.01619327 | E27: sek/tre (G15-timer) | P27: T8 | Q27: Øvrig tid
S28: G15-min/m³
I29: A = | J29: Kjøreavstand èn vei | K29: =FORSIDE!M32 -> 500 | L29: meter
I30: Y = | J30: Overflatestruktur (klasse) | K30: =FORSIDE!M24 -> 3 | L30: klasse fra tabell | P30: L = | Q30: Lasstørrelse | R30: =K16 -> 20 | S30: m³/tre
I31: B = | J31: Hellingsklasse | K31: =FORSIDE!M28 -> 2 | L31: klasse fra tabell
I32: H = | J32: Kjørehastighet | K32: =75-(8.2*K30)-(1.4*(K31*K31)) -> 44.8 | L32: meter/G15-min | Q32: Tidsforbruk pr m³ | R32: =1.5/R30 -> 0.075 | S32: min/m³ (G15-timer)
I33: L = | J33: Lasstørrelse | K33: =K16 -> 20 | L33: m³/lass
Q34: Tidsforbruk, omregnet til sek/tre | R34: =((R32*100)*0.6)*($D$21/$D$20) -> 1.125 | S34: sek/tre (G15-timer)
J35: Tidsforbruk pr m³ | K35: =(2*K29)/(K32*K33) -> 1.116071429 | L35: min/m³ (G15-timer)
J37: Tidsforbruk, omregnet til sek/tre | K37: =((K35*100)*0.6)*($D$21/$D$20) -> 16.74107143 | L37: sek/tre (G15-timer)

Sheet HJELPETABELLER
B4: HJELPETABELLER
B6: Y = overflatestruktur klasser | C6: Kjøreforhold | F6: L = helningsklasser | G6: % helning | I6: Øvrig tid i cmin | J6: Øvrig tid i sekund | K6: Vurdert
B7: 1 | C7: Meget gode | F7: 1 | G7: 0-10 % | I7: 0.5 | J7: =I7*100/60 -> 0.8333333333 | K7: Min
B8: 2 | C8: Gode | F8: 2 | G8: 10-20 % | I8: 0.7 | J8: 1.166666667 | K8: Middels
B9: 3 | C9: Middels gode | F9: 3 | G9: 20-33 % | I9: 0.9 | J9: 1.5 | K9: Max
B10: 4 | C10: Dårlige | F10: 4 | G10: 33-50 %
B11: 5 | C11: Svært dårlig | F11: 5 | G11: > 50 %
B13: Tabell for overflatestruktur
F14: K2 = Kostant etter lassbærerstørrelse | G14: Maskinstør-relse | I14: T4 variabler | J14: a | K14: b
F15: 1.04 | G15: Liten | I15: Foryngelseshogst | J15: 5.7 | K15: 11.45
F16: 0.86 | G16: Middels | I16: Tynning | J16: -43 | K16: 25.9
F17: 0.73 | G17: Stor
F18: 1.18 | G18: Liten
F19: 0.67 | G19: Middels
F20: 0.67 | G20: Stor
B58: H20 | C58: H40 | D58: H60 | E58: H80
C59: Ingen | D59: Ingen | E59: Ingen
B60: Svært få | C60: Svært få | D60: Svært få | E60: Svært få
B61: Få | C61: Få | D61: Få | E61: Få
B62: Mange
B63: Svært mange

Sheet HJELPETABELL
I5: Høydeklasser | L5: Overflatestruktur-
H6: H20 | I6: H40 | J6: H60 | K6: H80 | L6: klasser
C7: Forklaring av tabellen: Gå alltid inn i tabellen fra venstre. Bedøm først hindehøyde "H20", deretter "H40", osv. Du ender da med å gå flatt mot høyre eller trappe ned mot høyre. Til slutt ender du i den røde kolonnen der klassen for din drift vises. | H7: Få | I7: Svært få . | L7: 1. Meget gode
L8: kjøreforhold
H9: Mange | J9: Ingen
I10: Få | J10: Svært få | L10: 2. Gode kjøreforhold
J11: Svært få
H12: Svært | L12: 3. Middels gode
H13: mange | I13: Mange | J13: Få | K13: Svært få | L13: kjøreforhold
K14: Få | L14: 4. Dårlige kjøreforhold
C15: Antall hinder | D15: Beskrivelse | E15: Gj.snitt avstand | F15: Antall hinder /daa | H15: Alt terreng vanskeligere enn klasse 4 | L15: 5. Meget dårlige kjøreforhold
D16: Svært få | E16: 15 - 50 m | F16: 0,4 - 4
D17: Få | E17: 5 - 15 m | F17: 4 - 40
D18: Mange | E18: 1,5 - 5 m | F18: 40 - 400
D19: Svært mange | E19: < 1,5 m | F19: > 400
C21: Høydeklasse | D21: Klasse | E21: Hinderhøyde
D22: H20 | E22: 10-30 cm
D23: H40 | E23: 30-50 cm
D24: H60 | E24: 50-70 cm
D25: H80 | E25: 70-90 cm
C30: Alternativ forenklet bedømming:
C31: 1. Meget gode kjøreforhold: | E31: Meget jevnt terreng med svært få hinder over 30 cm.
C32: 2. Gode kjøreforhold: | E32: Svært få hinder over 50 cm. Hinder over 70 cm kan forekomme.
C33: 3. Middels gode kjøreforhold: | E33: Svært mange mindre hinder. De fleste er mindre enn 40 cm.
E34: Få store hinder. Hinder over 70 cm kan forekomme.
C35: 4. Dårlige kjøreforhold: | E35: Svært mange små hinder. Mange mellomstore og store hinder. Hinder
E36: på 50-70 cm kan forekomme.
C37: 5. Svært dårlige kjøreforhold | E37: Ingen klassifisering

Sheet MenyMalOppsett
J5: Gyldig tom | K5: 2023-12-31
B6: Utseende/format flik AKTIV: | D6: Flik_MenyAktiv | J6: Melding: | K6: Denne versjonen er ikke lenger gyldig! Last ned ny gratis versjon fra www.skogkurs.no/kunnskapsskogen | P6: 155
P7: 118
B9: Utseende/format flik PASSIV: | D9: Flik_MenyPassiv | K9: {CTRL} + {SHIFT} + s = brukermodus
K10: {CTRL} + {SHIFT} + x = redigeringsmodus
B11: Flik 1 setter størrelse for ALLE fliker!
M13: Excel 2010 | N13: 2013/2016
J14: Posisjon Produktivitet Hogsmaskin | L14: Top | M14: 150 | N14: 150 | O14: (fra toppen innenfor diagrammet)
B15: Kolonnebredde A: | D15: 1 | E15: cKolBreddeA | L15: Left | M15: 130 | N15: 130 | O15: (fra venstre innenfor diagrammet)
B16: Radhøyde 3 første rader: | D16: 12 | E16: cRadHøyde
B17: Avstand mellom FLIKER: | D17: 15 | E17: cSplit | J17: Posisjon Produktivitet Lassbærer | L17: Top | M17: 159 | N17: 150 | O17: (fra toppen innenfor diagrammet)
B18: Redigeringsmodus: | D18: TRUE | E18: cRedModus | L18: Left | M18: 150 | N18: 95 | O18: (fra venstre innenfor diagrammet)
B24: caObjPos | J24: caMeny | L24: Alle ark i arbeidsboken må legges inn! Max 12 ark…
B26: Navn | C26: Sheet | D26: Visible | E26: Top | F26: Left | G26: Height | H26: Width | J26: FlikNavn | K26: ArkNavn | L26: ArkSkalHaFlik | M26: FlikTekst | N26: FlikRekkefølge | O26: ArkSynlig | P26: ArkSkulteKolonner | Q26: ArkSkjulteRader
B27: Flik_12 | C27: FORSIDE | D27: 0 | E27: 13 | F27: 983.8306885 | G27: 25.05204773 | H27: 0.4243307114 | J27: Flik_01 | K27: FORSIDE | L27: 1 | M27: Forside | N27: 1 | O27: 1 | P27: s:XFD | Q27: 51:1048576
B28: Flik_11 | C28: FORSIDE | D28: 0 | E28: 13 | F28: 984.1563721 | G28: 25.05204773 | H28: 0.3256692886 | J28: Flik_02 | K28: DASHBORD | L28: 1 | M28: Dashbord | N28: 2 | O28: 1 | P28: AC:XFD | Q28: 26:1048576
B29: Flik_10 | C29: FORSIDE | D29: 0 | E29: 13 | F29: 984.4820557 | G29: 25.05204773 | H29: 0.4243307114 | J29: Flik_03 | K29: PROD.NORMER TABELL | M29: Prod normer | N29: 3 | O29: 0 | P29: N:XFD | Q29: 31:1048576
B30: Flik_09 | C30: FORSIDE | D30: 0 | E30: 13 | F30: 984.0577393 | G30: 25.05204773 | H30: 0.4243307114 | J30: Flik_04 | K30: HOGSTMASKIN (G0) | M30: Hogstmaskin | N30: 4 | O30: 0
B31: Flik_08 | C31: FORSIDE | D31: 0 | E31: 13 | F31: 864.1550903 | G31: 25.05204773 | H31: 119.9025955 | J31: Flik_05 | K31: LASSBÆRER (G15) | M31: Lassbærer | N31: 5 | O31: 0
B32: Flik_07 | C32: FORSIDE | D32: 0 | E32: 13 | F32: 741.9373169 | G32: 25.05204773 | H32: 138.0981903 | J32: Flik_06 | K32: HJELPETABELLER | M32: Help | N32: 6 | O32: 0
B33: Flik_06 | C33: FORSIDE | D33: 0 | E33: 13 | F33: 620.241272 | G33: 25.05204773 | H33: 136.7286682 | J33: Flik_07 | K33: HJELPETABELL | M33: Terrengklasser | N33: 7 | O33: 1 | P33: O:XFD | Q33: 39:1048576
B34: Flik_05 | C34: FORSIDE | D34: 0 | E34: 13 | F34: 498.3821411 | G34: 25.05204773 | H34: 136.8591309 | J34: Flik_08 | K34: MenyMalOppsett | M34: Menyoppsett | N34: 8 | O34: 0
B35: Flik_04 | C35: FORSIDE | D35: 0 | E35: 13 | F35: 375.9360657 | G35: 25.05204773 | H35: 137.4460602 | J35: Flik_09 | K35: Ferdigdato | M35: Ferdigdato | N35: 9 | O35: 0
B36: Flik_03 | C36: FORSIDE | D36: 0 | E36: 13 | F36: 254.2400055 | G36: 25.05204773 | H36: 137.054718 | J36: Flik_10 | K36: NORSKE TILPASNINGER | M36: Norske tilpasninger | N36: 10 | O36: 1 | P36: w:xfd | Q36: 46:1048576
B37: Flik_02 | C37: FORSIDE | D37: -1 | E37: 13 | F37: 130.5222015 | G37: 25.05204773 | H37: 139.3699188 | J37: Flik_11
B38: Grafikk 2 | C38: FORSIDE | D38: -1 | E38: 46.49991989 | F38: 5.25 | G38: 63.7826767 | H38: 65.0326767 | J38: Flik_12
B39: Grafikk 66 | C39: FORSIDE | D39: -1 | E39: 857.0301514 | F39: 780.5293579 | G39: 58.26984406 | H39: 189.0907135
B40: Bilde 67 | C40: FORSIDE | D40: -1 | E40: 814.0585938 | F40: 932.0735474 | G40: 22.67716599 | H40: 22.52173233
B41: Bilde 68 | C41: FORSIDE | D41: -1 | E41: 814.0585938 | F41: 891.0440063 | G41: 22.67716599 | H41: 22.67716599
B42: Flik_01 | C42: FORSIDE | D42: -1 | E42: 13 | F42: 10.22818851 | G42: 25.05204773 | H42: 135.2940216
B43: TextBox 1 | C43: FORSIDE | D43: -1 | E43: 409.5 | F43: 525 | G43: 18.75 | H43: 151.5
B44: TekstSylinder 3 | C44: FORSIDE | D44: -1 | E44: 279 | F44: 1151.25 | G44: 147 | H44: 167.25
B45: TextBox 1 | C45: FORSIDE | D45: -1 | E45: 440.25 | F45: 526.5 | G45: 33.75 | H45: 151.5
B46: TekstSylinder 4 | C46: FORSIDE | D46: -1 | E46: 873.4500732 | F46: 201.75 | G46: 16.04999924 | H46: 343.5
B47: TekstSylinder 5 | C47: FORSIDE | D47: -1 | E47: 897 | F47: 496.5000916 | G47: 10.5 | H47: 99.75
B48: TekstSylinder 6 | C48: FORSIDE | D48: -1 | E48: 908.25 | F48: 105.7500763 | G48: 15.75 | H48: 190.5
B49: TekstSylinder 7 | C49: FORSIDE | D49: -1 | E49: 862.5 | F49: 45.75 | G49: 9.75 | H49: 345
B50: Alternativknapp 91 | C50: FORSIDE | D50: -1 | E50: 300.75 | F50: 66 | G50: 28.5 | H50: 168.75
B51: Alternativknapp 93 | C51: FORSIDE | D51: -1 | E51: 324 | F51: 66 | G51: 27.75 | H51: 254.25
B52: Alternativknapp 94 | C52: FORSIDE | D52: -1 | E52: 346.5 | F52: 66 | G52: 27.75 | H52: 243.75
B53: Grupperingsboks 98 | C53: FORSIDE | D53: -1 | E53: 288 | F53: 54.75 | G53: 94.5 | H53: 279
B54: Comment 2 | C54: FORSIDE | D54: 0 | E54: 476.25 | F54: 304.5 | G54: 45.75 | H54: 259.5
B55: Comment 3 | C55: FORSIDE | D55: 0 | E55: 482.25 | F55: 304.5 | G55: 60.75 | H55: 442.5
B56: Comment 5 | C56: FORSIDE | D56: 0 | E56: 396 | F56: 304.5 | G56: 46.5 | H56: 292.5
B57: Comment 7 | C57: FORSIDE | D57: 0 | E57: 528 | F57: 304.5 | G57: 33.75 | H57: 181.5
B58: Comment 11 | C58: FORSIDE | D58: 0 | E58: 262.5 | F58: 304.5 | G58: 31.5 | H58: 175.5
B59: Comment 12 | C59: FORSIDE | D59: 0 | E59: 494.25 | F59: 495 | G59: 198.75 | H59: 540.75
B60: Comment 24 | C60: FORSIDE | D60: 0 | E60: 647.25 | F60: 304.5 | G60: 33.75 | H60: 181.5
B61: Comment 45 | C61: FORSIDE | D61: 0 | E61: 766.5 | F61: 304.5 | G61: 37.5 | H61: 181.5
B62: Comment 57 | C62: FORSIDE | D62: 0 | E62: 848.25 | F62: 717.75 | G62: 91.5 | H62: 333.75
B63: Comment 69 | C63: FORSIDE | D63: 0 | E63: 601.5 | F63: 434.25 | G63: 214.5 | H63: 531
B64: Comment 71 | C64: FORSIDE | D64: 0 | E64: 567.75 | F64: 780.75 | G64: 113.25 | H64: 175.5
B65: Comment 73 | C65: FORSIDE | D65: 0 | E65: 647.25 | F65: 780.75 | G65: 39.75 | H65: 242.25
B66: Comment 74 | C66: FORSIDE | D66: 0 | E66: 678 | F66: 780.75 | G66: 42.75 | H66: 249
B67: Comment 75 | C67: FORSIDE | D67: 0 | E67: 726.75 | F67: 780.75 | G67: 33.75 | H67: 270.75
B68: Comment 76 | C68: FORSIDE | D68: 0 | E68: 766.5 | F68: 780.75 | G68: 36.75 | H68: 438.75
B69: Comment 82 | C69: FORSIDE | D69: 0 | E69: 708.75 | F69: 304.5 | G69: 36.75 | H69: 178.5
B70: Comment 83 | C70: FORSIDE | D70: 0 | E70: 729.75 | F70: 304.5 | G70: 39.75 | H70: 178.5
B71: Comment 85 | C71: FORSIDE | D71: 0 | E71: 804 | F71: 304.5 | G71: 41.25 | H71: 178.5
B72: Comment 87 | C72: FORSIDE | D72: 0 | E72: 610.5 | F72: 780.75 | G72: 110.25 | H72: 172.5
B73: Comment 89 | C73: FORSIDE | D73: 0 | E73: 804 | F73: 780.75 | G73: 103.5 | H73: 312.75
B74: Drop Down 102 | C74: FORSIDE | D74: 0 | E74: 522 | F74: 295.5 | G74: 24.75 | H74: 93.75
B75: Bilde 1 | C75: NORSKE TILPASNINGER | D75: -1 | E75: 59 | F75: 0 | G75: 594.7000122 | H75: 422.4959106
B76: Bilde 2 | C76: NORSKE TILPASNINGER | D76: -1 | E76: 61.5 | F76: 483.5 | G76: 549.5830078 | H76: 408.9975586
B77: Bilde 3 | C77: NORSKE TILPASNINGER | D77: -1 | E77: 63 | F77: 953.5 | G77: 555.2822876 | H77: 407.1977844
B78: TekstSylinder 4 | C78: NORSKE TILPASNINGER | D78: -1 | E78: 15.25 | F78: 25 | G78: 34 | H78: 163.5
B79: TekstSylinder 6 | C79: NORSKE TILPASNINGER | D79: -1 | E79: 612.75 | F79: 1225.5 | G79: 34 | H79: 163.5
B80: Flik_12 | C80: DASHBORD | D80: 0 | E80: 12.4193697 | F80: 1352.762817 | G80: 24.63267708 | H80: 137.805191
B81: Flik_11 | C81: DASHBORD | D81: 0 | E81: 12.66669273 | F81: 1230.529053 | G81: 24.385355 | H81: 137.3052826
B82: Flik_10 | C82: DASHBORD | D82: 0 | E82: 12.66669273 | F82: 1109.354614 | G82: 24.385355 | H82: 137.7815704
B83: Flik_09 | C83: DASHBORD | D83: 0 | E83: 12.66669273 | F83: 985.1921997 | G83: 24.385355 | H83: 139.1624451
B84: Flik_08 | C84: DASHBORD | D84: 0 | E84: 12.66669273 | F84: 863.7440796 | G84: 24.385355 | H84: 136.4481049
B85: Flik_07 | C85: DASHBORD | D85: 0 | E85: 12.66669273 | F85: 742.3317261 | G85: 24.385355 | H85: 136.4123688
B86: Flik_06 | C86: DASHBORD | D86: 0 | E86: 12.66669273 | F86: 621.3955078 | G86: 24.385355 | H86: 135.9362183
B87: Flik_05 | C87: DASHBORD | D87: 0 | E87: 12.66669273 | F87: 498.3520508 | G87: 24.385355 | H87: 137.7338562
B88: Flik_04 | C88: DASHBORD | D88: 0 | E88: 12.66669273 | F88: 377.2253418 | G88: 24.385355 | H88: 136.1266937
B89: Flik_03 | C89: DASHBORD | D89: 0 | E89: 12.66669273 | F89: 254.4676361 | G89: 24.385355 | H89: 137.7577209
B90: Flik_01 | C90: DASHBORD | D90: -1 | E90: 12.66669273 | F90: 10.97251987 | G90: 24.385355 | H90: 133.5113373
B91: Diagram 24 | C91: DASHBORD | D91: -1 | E91: 112.5000763 | F91: 1219.858765 | G91: 293.7332153 | H91: 374.4010315
B92: Diagram 39 | C92: DASHBORD | D92: -1 | E92: 114.3845673 | F92: 436.0953674 | G92: 294.0773926 | H92: 334.543457
B93: Pil høyre 2 | C93: DASHBORD | D93: -1 | E93: 488.0195923 | F93: 358.666687 | G93: 10.5 | H93: 60.75
B94: Pil høyre 23 | C94: DASHBORD | D94: -1 | E94: 488.0195923 | F94: 1141.166748 | G94: 10.5 | H94: 60.75
B95: txtHogstInfo | C95: DASHBORD | D95: -1 | E95: 311.420166 | F95: 519.7996216 | G95: 30.55393791 | H95: 174.7837067
B96: txtLassInfo | C96: DASHBORD | D96: -1 | E96: 316.5195312 | F96: 1321.063721 | G96: 33.03921127 | H96: 178.1862183
B97: Flik_02 | C97: DASHBORD | D97: -1 | E97: 12.66669273 | F97: 129.4838562 | G97: 24.385355 | H97: 140.7218933
B98: Grafikk 35 | C98: DASHBORD | D98: -1 | E98: 44 | F98: 1393.666748 | G98: 48.76511765 | H98: 145.7736969
B99: Comment 1 | C99: DASHBORD | D99: 0 | E99: 248.25 | F99: 159.75 | G99: 59.25 | H99: 205.5
B100: Comment 2 | C100: DASHBORD | D100: 0 | E100: 248.25 | F100: 855 | G100: 59.25 | H100: 189.75
B101: Comment 6 | C101: DASHBORD | D101: -1 | E101: 599.25 | F101: 392.25 | G101: 74.25 | H101: 277.5
B102: Bilde 3 | C102: HOGSTMASKIN (G0) | D102: -1 | E102: 144.0588226 | F102: 55.17661285 | G102: 35.17637634 | H102: 258.5735474
B103: Bilde 26 | C103: HOGSTMASKIN (G0) | D103: -1 | E103: 208.0588226 | F103: 179.4680328 | G103: 32.74118042 | H103: 237.5318909
B104: Vinkel 29 | C104: HOGSTMASKIN (G0) | D104: -1 | E104: 216 | F104: 124.8822861 | G104: 97.5 | H104: 50.2943306
B105: Bilde 32 | C105: HOGSTMASKIN (G0) | D105: -1 | E105: 216.0000763 | F105: 28 | G105: 32.79992294 | H105: 94.46346283
B106: Bilde 43 | C106: HOGSTMASKIN (G0) | D106: -1 | E106: 145.2998352 | F106: 1387.329346 | G106: 18.83826828 | H106: 110.3207092
B107: Bilde 49 | C107: HOGSTMASKIN (G0) | D107: -1 | E107: 373.6765442 | F107: 558.8970947 | G107: 29.73519707 | H107: 159.1798401
B108: Bilde 53 | C108: HOGSTMASKIN (G0) | D108: -1 | E108: 139.1066132 | F108: 1800.5 | G108: 16.60669327 | H108: 74.25
B109: Bilde 55 | C109: HOGSTMASKIN (G0) | D109: -1 | E109: 328.5 | F109: 1803.574951 | G109: 32.25 | H109: 96.96559143
B110: Bilde 1 | C110: HOGSTMASKIN (G0) | D110: -1 | E110: 131.1999969 | F110: 1799 | G110: 31.04614258 | H110: 201.1303101
B111: Bilde 2 | C111: HOGSTMASKIN (G0) | D111: -1 | E111: 172.6000061 | F111: 1668 | G111: 59.84259796 | H111: 330.6922913
B112: Divisjon 5 | C112: HOGSTMASKIN (G0) | D112: -1 | E112: 123.4000015 | F112: 1734.199951 | G112: 175.6000061 | H112: 229.6000061
B113: Bilde 13 | C113: HOGSTMASKIN (G0) | D113: -1 | E113: 373.6765442 | F113: 963.8970947 | G113: 29.73519707 | H113: 159.1798401
B114: Bilde 15 | C114: HOGSTMASKIN (G0) | D114: -1 | E114: 373.6765442 | F114: 1368.896973 | G114: 29.73519707 | H114: 159.1798401
B115: Comment 9 | C115: HOGSTMASKIN (G0) | D115: 0 | E115: 555.75 | F115: 422.25 | G115: 46.5 | H115: 150
B116: Comment 15 | C116: HOGSTMASKIN (G0) | D116: 0 | E116: 402.75 | F116: 312.75 | G116: 109.5 | H116: 165.75
B117: Comment 18 | C117: HOGSTMASKIN (G0) | D117: 0 | E117: 355.5 | F117: 258 | G117: 57 | H117: 102
B118: Bilde 11 | C118: LASSBÆRER (G15) | D118: -1 | E118: 233.9687347 | F118: 90.25 | G118: 102.6222839 | H118: 311.04953
B119: Bilde 13 | C119: LASSBÆRER (G15) | D119: -1 | E119: 164.6268463 | F119: 75.24992371 | G119: 34.71133804 | H119: 256.4659119
B120: Bilde 15 | C120: LASSBÆRER (G15) | D120: -1 | E120: 220.7292175 | F120: 714.833374 | G120: 18.09055138 | H120: 182.6008606
B121: Bilde 17 | C121: LASSBÆRER (G15) | D121: -1 | E121: 165.666687 | F121: 647.9742432 | G121: 32.2548027 | H121: 54.43031311
B122: Vinkel 19 | C122: LASSBÆRER (G15) | D122: -1 | E122: 209 | F122: 681.4287109 | G122: 21.28574753 | H122: 31.71417236
B123: Bilde 29 | C123: LASSBÆRER (G15) | D123: -1 | E123: 161.4840088 | F123: 1083.816895 | G123: 19.04535484 | H123: 93.12441254
B124: Bilde 33 | C124: LASSBÆRER (G15) | D124: -1 | E124: 367.0482788 | F124: 1076.353027 | G124: 21.09952736 | H124: 137.6470795
B125: Bilde 39 | C125: LASSBÆRER (G15) | D125: -1 | E125: 543.1177368 | F125: 1142.630859 | G125: 39.70606232 | H125: 53.72212601
B126: Bilde 9 | C126: LASSBÆRER (G15) | D126: -1 | E126: 536.729187 | F126: 714.833374 | G126: 17.62000084 | H126: 182.8832245
B127: Bilde 10 | C127: LASSBÆRER (G15) | D127: -1 | E127: 483.666687 | F127: 647.9742432 | G127: 33.72543335 | H127: 54.43031311
B128: Vinkel 12 | C128: LASSBÆRER (G15) | D128: -1 | E128: 522 | F128: 681.4287109 | G128: 27.28574753 | H128: 31.71417236
B129: Comment 4 | C129: LASSBÆRER (G15) | D129: 0 | E129: 615 | F129: 821.25 | G129: 84.75 | H129: 221.25
B130: Pil: høyre 1 | C130: HJELPETABELL | D130: -1 | E130: 133.5 | F130: 421.5 | G130: 3.599921227 | H130: 24
B131: TekstSylinder 16 | C131: HJELPETABELL | D131: -1 | E131: 18.75 | F131: 36.00008011 | G131: 34.5 | H131: 153.7499237
B132: Comment 1 | C132: HJELPETABELL | D132: 0 | E132: 249.75 | F132: 417 | G132: 57 | H132: 201.75
B133: Flik_12 | C133: MenyMalOppsett | D133: -1 | E133: 13 | F133: 1352.817627 | G133: 25.05204773 | H133: 137.5243378
B134: Flik_11 | C134: MenyMalOppsett | D134: -1 | E134: 13 | F134: 1230.443359 | G134: 25.05204773 | H134: 137.3743286
B135: Flik_10 | C135: MenyMalOppsett | D135: -1 | E135: 13 | F135: 1110.168945 | G135: 25.05204773 | H135: 135.2743378
B136: Flik_09 | C136: MenyMalOppsett | D136: -1 | E136: 13 | F136: 986.8946533 | G136: 25.05204773 | H136: 138.2743378
B137: Flik_07 | C137: MenyMalOppsett | D137: -1 | E137: 13 | F137: 741.3959961 | G137: 25.05204773 | H137: 138.4243317
B138: Flik_06 | C138: MenyMalOppsett | D138: -1 | E138: 13 | F138: 620.2216797 | G138: 25.05204773 | H138: 136.0243378
B139: Flik_05 | C139: MenyMalOppsett | D139: -1 | E139: 13 | F139: 496.9473267 | G139: 25.05204773 | H139: 138.2743378
B140: Flik_04 | C140: MenyMalOppsett | D140: -1 | E140: 13 | F140: 375.6229858 | G140: 25.05204773 | H140: 138.4243317
B141: Flik_03 | C141: MenyMalOppsett | D141: -1 | E141: 13 | F141: 252.3486633 | G141: 25.05204773 | H141: 138.4243317
B142: Flik_02 | C142: MenyMalOppsett | D142: -1 | E142: 13 | F142: 130.8743286 | G142: 25.05204773 | H142: 138.5743256
B143: Flik_01 | C143: MenyMalOppsett | D143: -1 | E143: 13 | F143: 10.14999962 | G143: 25.05204773 | H143: 135.7243347
B144: cmdLagreObjPos | C144: MenyMalOppsett | D144: -1 | E144: 247.5 | F144: 12 | G144: 44.25 | H144: 221.25
B145: Flik_MenyPassiv | C145: MenyMalOppsett | D145: -1 | E145: 85.41708374 | F145: 256.0756836 | G145: 26.25204659 | H145: 138.4243317
B146: Flik_MenyAktiv | C146: MenyMalOppsett | D146: -1 | E146: 50.66708755 | F146: 253.5756683 | G146: 25.05204773 | H146: 138.4243317
B147: cmdLagFliker | C147: MenyMalOppsett | D147: -1 | E147: 251.25 | F147: 674.25 | G147: 28.5 | H147: 159
B148: Flik_08 | C148: MenyMalOppsett | D148: -1 | E148: 13 | F148: 864.8203125 | G148: 25.05204773 | H148: 137.0743256
B149: Comment 3 | C149: MenyMalOppsett | D149: 0 | E149: 318 | F149: 704.25 | G149: 45 | H149: 113.25
B150: Comment 4 | C150: MenyMalOppsett | D150: 0 | E150: 318 | F150: 811.5 | G150: 63 | H150: 114
B151: Comment 5 | C151: MenyMalOppsett | D151: 0 | E151: 318 | F151: 1085.25 | G151: 63 | H151: 112.5
B152: Comment 6 | C152: MenyMalOppsett | D152: 0 | E152: 318 | F152: 1000.5 | G152: 63 | H152: 111.75
B153: Comment 7 | C153: MenyMalOppsett | D153: 0 | E153: 318 | F153: 885 | G153: 63 | H153: 112.5
B154: Comment 1 | C154: Ferdigdato | D154: 0 | E154: 224.25 | F154: 627.75 | G154: 38.25 | H154: 551.25
B155: Comment 2 | C155: Ferdigdato | D155: 0 | E155: 412.5 | F155: 556.5 | G155: 28.5 | H155: 574.5
B156: Comment 3 | C156: Ferdigdato | D156: 0 | E156: 501.75 | F156: 897 | G156: 38.25 | H156: 40.5
B157: Comment 4 | C157: Ferdigdato | D157: 0 | E157: 680.25 | F157: 648.75 | G157: 28.5 | H157: 530.25
B158: Comment 5 | C158: Ferdigdato | D158: 0 | E158: 782.25 | F158: 897 | G158: 38.25 | H158: 40.5
B159: Comment 6 | C159: Ferdigdato | D159: 0 | E159: 960.75 | F159: 648.75 | G159: 28.5 | H159: 530.25

Sheet Ferdigdato
E2: Cellenavn
B3: Fra | C3: 2022-10-04 | E3: Fra
B4: Antall arbeidsdager | C4: 7 | E4: AntArbDager
B5: Ferdig dato | C5: =INDEX(DatoTab,MATCH("Til",INDEX(DatoTab,,1),0),2) -> 2022-10-12 | E5: FerdigDato
B7: Antall kalenderdager: | C7: =Til-Fra -> 8
B10: DatoTab | M10: caHellig
B12: Fra og til | C12: Dato | D12: Ukedag | E12: Ukedag navn | F12: Helligdag Rad | G12: Helligdag Dato | H12: HelligDag Navn | I12: Fridag | J12: AkkArb Dager | L12: År1 | M12: Helligdager | N12: Dato | Q12: Datoliste
B13: Fra | C13: =Fra -> 2022-10-04 | D13: =WEEKDAY(C13,11) -> 2 | E13: =C13 -> 2022-10-04 | F13: =IFERROR(MATCH(C13,INDEX(caHellig,,2),0),0) -> 0 | G13: =IF(F13>0,INDEX(caHellig,F13,2),"") ->  | H13: =IF(F13>0,INDEX(caHellig,F13,1),"") ->  | I13: =IF(C13="","",IF(OR(D13>5,F13,0),1,0)) -> 0 | J13: =IF(C13="","",IF(I13=0,1,0)) -> 1 | L13: =YEAR(Fra) -> 2022 | M13: Bevegelige: | Q13: =TODAY() -> 2023-01-12
B14: =IF(J14=AntArbDager,"Til","") ->  | C14: =C13+1 -> 2022-10-05 | D14: =IF(C14<>"",WEEKDAY(C14,2),"") -> 3 | E14: =C14 -> 2022-10-05 | F14: =IF(C14="","",IFERROR(MATCH(C14,INDEX(caHellig,,2),0),0)) -> 0 | G14: =IF(C14="","",IF(F14>0,INDEX(caHellig,F14,2),"")) ->  | H14: =IF(C14="","",IF(F14>0,INDEX(caHellig,F14,1),"")) ->  | I14: 0 | J14: =IF(C14="","",IF(I14=0,J13+1,J13)) -> 2 | M14: Palmesøndag | N14: =N15-4 -> 2022-04-10 | Q14: =Q13+1 -> 2023-01-13
B15: =IF(J15=$C$4,"Til","") ->  | C15: =C14+1 -> 2022-10-06 | D15: 4 | E15: 2022-10-06 | F15: 0 | I15: 0 | J15: 3 | M15: Skjærtorsdag | N15: =N16-1 -> 2022-04-14 | Q15: =Q14+1 -> 2023-01-14
C16: 2022-10-07 | D16: 5 | E16: 2022-10-07 | F16: 0 | I16: 0 | J16: 4 | M16: Langfredag | N16: =N17-1 -> 2022-04-15 | Q16: 2023-01-15
C17: 2022-10-08 | D17: 6 | E17: 2022-10-08 | F17: 0 | I17: 1 | J17: 4 | M17: Påskeaften | N17: =N18-1 -> 2022-04-16 | Q17: 2023-01-16
C18: 2022-10-09 | D18: 7 | E18: 2022-10-09 | F18: 0 | I18: 1 | J18: 4 | M18: 1. Påskedag | N18: =FLOOR(DAY(MINUTE(cAar/38)/2+56)&"/5/"&cAar,7)-34 -> 2022-04-17 | Q18: 2023-01-17
C19: 2022-10-10 | D19: 1 | E19: 2022-10-10 | F19: 0 | I19: 0 | J19: 5 | M19: 2. Påskedag | N19: =N18+1 -> 2022-04-18 | Q19: 2023-01-18
C20: 2022-10-11 | D20: 2 | E20: 2022-10-11 | F20: 0 | I20: 0 | J20: 6 | M20: Kristi himmelfartsdag | N20: =N17+40 -> 2022-05-26 | Q20: 2023-01-19
B21: Til | C21: 2022-10-12 | D21: 3 | E21: 2022-10-12 | F21: 0 | I21: 0 | J21: 7 | M21: 1. Pinsedag | N21: =N18+49 -> 2022-06-05 | Q21: 2023-01-20
C22: 2022-10-13 | D22: 4 | E22: 2022-10-13 | F22: 0 | I22: 0 | J22: 8 | M22: 2. Pinsedag | N22: =N18+50 -> 2022-06-06 | Q22: 2023-01-21
C23: 2022-10-14 | D23: 5 | E23: 2022-10-14 | F23: 0 | I23: 0 | J23: 9 | Q23: 2023-01-22
C24: 2022-10-15 | D24: 6 | E24: 2022-10-15 | F24: 0 | I24: 1 | J24: 9 | M24: Faste: | Q24: 2023-01-23
C25: 2022-10-16 | D25: 7 | E25: 2022-10-16 | F25: 0 | I25: 1 | J25: 9 | M25: 1. Nyttårsdag | N25: =DATE(cAar,1,1) -> 2022-01-01 | Q25: 2023-01-24
C26: 2022-10-17 | D26: 1 | E26: 2022-10-17 | F26: 0 | I26: 0 | J26: 10 | M26: Off. Høytidsdag (1. Mai) | N26: =DATE(cAar,5,1) -> 2022-05-01 | Q26: 2023-01-25
C27: 2022-10-18 | D27: 2 | E27: 2022-10-18 | F27: 0 | I27: 0 | J27: 11 | M27: Grunnlovsdag | N27: =DATE(cAar,5,17) -> 2022-05-17 | Q27: 2023-01-26
C28: 2022-10-19 | D28: 3 | E28: 2022-10-19 | F28: 0 | I28: 0 | J28: 12 | M28: Julaften | N28: =DATE(cAar,12,24) -> 2022-12-24 | Q28: 2023-01-27
C29: 2022-10-20 | D29: 4 | E29: 2022-10-20 | F29: 0 | I29: 0 | J29: 13 | M29: 1. Juledag | N29: =DATE(cAar,12,25) -> 2022-12-25 | Q29: 2023-01-28
C30: 2022-10-21 | D30: 5 | E30: 2022-10-21 | F30: 0 | I30: 0 | J30: 14 | M30: 2. Juledag | N30: =DATE(cAar,12,26) -> 2022-12-26 | Q30: 2023-01-29
C31: 2022-10-22 | D31: 6 | E31: 2022-10-22 | F31: 0 | I31: 1 | J31: 14 | Q31: 2023-01-30
C32: 2022-10-23 | D32: 7 | E32: 2022-10-23 | F32: 0 | I32: 1 | J32: 14 | M32: Egne merkedager: | Q32: 2023-01-31
C33: 2022-10-24 | D33: 1 | E33: 2022-10-24 | F33: 0 | I33: 0 | J33: 15 | Q33: 2023-02-01
C34: 2022-10-25 | D34: 2 | E34: 2022-10-25 | F34: 0 | I34: 0 | J34: 16 | L34: År2 | Q34: 2023-02-02
C35: 2022-10-26 | D35: 3 | E35: 2022-10-26 | F35: 0 | I35: 0 | J35: 17 | L35: =cAar+1 -> 2023 | M35: Bevegelige: | Q35: 2023-02-03
C36: 2022-10-27 | D36: 4 | E36: 2022-10-27 | F36: 0 | I36: 0 | J36: 18 | M36: Palmesøndag | N36: =N37-4 -> 2023-04-02 | Q36: 2023-02-04
C37: 2022-10-28 | D37: 5 | E37: 2022-10-28 | F37: 0 | I37: 0 | J37: 19 | M37: Skjærtorsdag | N37: =N38-1 -> 2023-04-06 | Q37: 2023-02-05
C38: 2022-10-29 | D38: 6 | E38: 2022-10-29 | F38: 0 | I38: 1 | J38: 19 | M38: Langfredag | N38: =N39-1 -> 2023-04-07 | Q38: 2023-02-06
C39: 2022-10-30 | D39: 7 | E39: 2022-10-30 | F39: 0 | I39: 1 | J39: 19 | M39: Påskeaften | N39: =N40-1 -> 2023-04-08 | Q39: 2023-02-07
C40: 2022-10-31 | D40: 1 | E40: 2022-10-31 | F40: 0 | I40: 0 | J40: 20 | M40: 1. Påskedag | N40: =FLOOR(DAY(MINUTE(cAar2/38)/2+56)&"/5/"&cAar2,7)-34 -> 2023-04-09 | Q40: 2023-02-08
C41: 2022-11-01 | D41: 2 | E41: 2022-11-01 | F41: 0 | I41: 0 | J41: 21 | M41: 2. Påskedag | N41: =N40+1 -> 2023-04-10 | Q41: 2023-02-09
C42: 2022-11-02 | D42: 3 | E42: 2022-11-02 | F42: 0 | I42: 0 | J42: 22 | M42: Kristi himmelfartsdag | N42: =N39+40 -> 2023-05-18 | Q42: 2023-02-10
C43: 2022-11-03 | D43: 4 | E43: 2022-11-03 | F43: 0 | I43: 0 | J43: 23 | M43: 1. Pinsedag | N43: =N40+49 -> 2023-05-28 | Q43: 2023-02-11
C44: 2022-11-04 | D44: 5 | E44: 2022-11-04 | F44: 0 | I44: 0 | J44: 24 | M44: 2. Pinsedag | N44: =N40+50 -> 2023-05-29 | Q44: 2023-02-12
C45: 2022-11-05 | D45: 6 | E45: 2022-11-05 | F45: 0 | I45: 1 | J45: 24 | Q45: 2023-02-13
C46: 2022-11-06 | D46: 7 | E46: 2022-11-06 | F46: 0 | I46: 1 | J46: 24 | M46: Faste: | Q46: 2023-02-14
C47: 2022-11-07 | D47: 1 | E47: 2022-11-07 | F47: 0 | I47: 0 | J47: 25 | M47: 1. Nyttårsdag | N47: =DATE(cAar,1,1) -> 2022-01-01 | Q47: 2023-02-15
C48: 2022-11-08 | D48: 2 | E48: 2022-11-08 | F48: 0 | I48: 0 | J48: 26 | M48: Off. Høytidsdag (1. Mai) | N48: =DATE(cAar,5,1) -> 2022-05-01 | Q48: 2023-02-16
C49: 2022-11-09 | D49: 3 | E49: 2022-11-09 | F49: 0 | I49: 0 | J49: 27 | M49: Grunnlovsdag | N49: =DATE(cAar,5,17) -> 2022-05-17 | Q49: 2023-02-17
C50: 2022-11-10 | D50: 4 | E50: 2022-11-10 | F50: 0 | I50: 0 | J50: 28 | M50: Julaften | N50: =DATE(cAar,12,24) -> 2022-12-24 | Q50: 2023-02-18
C51: 2022-11-11 | D51: 5 | E51: 2022-11-11 | F51: 0 | I51: 0 | J51: 29 | M51: 1. Juledag | N51: =DATE(cAar,12,25) -> 2022-12-25 | Q51: 2023-02-19
C52: 2022-11-12 | D52: 6 | E52: 2022-11-12 | F52: 0 | I52: 1 | J52: 29 | M52: 2. Juledag | N52: =DATE(cAar,12,26) -> 2022-12-26 | Q52: 2023-02-20
C53: 2022-11-13 | D53: 7 | E53: 2022-11-13 | F53: 0 | I53: 1 | J53: 29 | Q53: 2023-02-21
C54: 2022-11-14 | D54: 1 | E54: 2022-11-14 | F54: 0 | I54: 0 | J54: 30 | M54: Egne merkedager: | Q54: 2023-02-22
C55: 2022-11-15 | D55: 2 | E55: 2022-11-15 | F55: 0 | I55: 0 | J55: 31 | Q55: 2023-02-23
C56: 2022-11-16 | D56: 3 | E56: 2022-11-16 | F56: 0 | I56: 0 | J56: 32 | L56: År3 | Q56: 2023-02-24
C57: 2022-11-17 | D57: 4 | E57: 2022-11-17 | F57: 0 | I57: 0 | J57: 33 | L57: =cAar+2 -> 2024 | M57: Bevegelige: | Q57: 2023-02-25
C58: 2022-11-18 | D58: 5 | E58: 2022-11-18 | F58: 0 | I58: 0 | J58: 34 | M58: Palmesøndag | N58: =N59-4 -> 2024-03-24 | Q58: 2023-02-26
C59: 2022-11-19 | D59: 6 | E59: 2022-11-19 | F59: 0 | I59: 1 | J59: 34 | M59: Skjærtorsdag | N59: =N60-1 -> 2024-03-28 | Q59: 2023-02-27
C60: 2022-11-20 | D60: 7 | E60: 2022-11-20 | F60: 0 | I60: 1 | J60: 34 | M60: Langfredag | N60: =N61-1 -> 2024-03-29 | Q60: 2023-02-28
C61: 2022-11-21 | D61: 1 | E61: 2022-11-21 | F61: 0 | I61: 0 | J61: 35 | M61: Påskeaften | N61: =N62-1 -> 2024-03-30 | Q61: 2023-03-01
C62: 2022-11-22 | D62: 2 | E62: 2022-11-22 | F62: 0 | I62: 0 | J62: 36 | M62: 1. Påskedag | N62: =FLOOR(DAY(MINUTE(cAar3/38)/2+56)&"/5/"&cAar3,7)-34 -> 2024-03-31 | Q62: 2023-03-02
C63: 2022-11-23 | D63: 3 | E63: 2022-11-23 | F63: 0 | I63: 0 | J63: 37 | M63: 2. Påskedag | N63: =N62+1 -> 2024-04-01 | Q63: 2023-03-03
C64: 2022-11-24 | D64: 4 | E64: 2022-11-24 | F64: 0 | I64: 0 | J64: 38 | M64: Kristi himmelfartsdag | N64: =N61+40 -> 2024-05-09 | Q64: 2023-03-04
C65: 2022-11-25 | D65: 5 | E65: 2022-11-25 | F65: 0 | I65: 0 | J65: 39 | M65: 1. Pinsedag | N65: =N62+49 -> 2024-05-19 | Q65: 2023-03-05
C66: 2022-11-26 | D66: 6 | E66: 2022-11-26 | F66: 0 | I66: 1 | J66: 39 | M66: 2. Pinsedag | N66: =N62+50 -> 2024-05-20 | Q66: 2023-03-06
C67: 2022-11-27 | D67: 7 | E67: 2022-11-27 | F67: 0 | I67: 1 | J67: 39 | Q67: 2023-03-07
C68: 2022-11-28 | D68: 1 | E68: 2022-11-28 | F68: 0 | I68: 0 | J68: 40 | M68: Faste: | Q68: 2023-03-08
C69: 2022-11-29 | D69: 2 | E69: 2022-11-29 | F69: 0 | I69: 0 | J69: 41 | M69: 1. Nyttårsdag | N69: =DATE(cAar,1,1) -> 2022-01-01 | Q69: 2023-03-09
C70: 2022-11-30 | D70: 3 | E70: 2022-11-30 | F70: 0 | I70: 0 | J70: 42 | M70: Off. Høytidsdag (1. Mai) | N70: =DATE(cAar,5,1) -> 2022-05-01 | Q70: 2023-03-10
C71: 2022-12-01 | D71: 4 | E71: 2022-12-01 | F71: 0 | I71: 0 | J71: 43 | M71: Grunnlovsdag | N71: =DATE(cAar,5,17) -> 2022-05-17 | Q71: 2023-03-11
C72: 2022-12-02 | D72: 5 | E72: 2022-12-02 | F72: 0 | I72: 0 | J72: 44 | M72: Julaften | N72: =DATE(cAar,12,24) -> 2022-12-24 | Q72: 2023-03-12
C73: 2022-12-03 | D73: 6 | E73: 2022-12-03 | F73: 0 | I73: 1 | J73: 44 | M73: 1. Juledag | N73: =DATE(cAar,12,25) -> 2022-12-25 | Q73: 2023-03-13
C74: 2022-12-04 | D74: 7 | E74: 2022-12-04 | F74: 0 | I74: 1 | J74: 44 | M74: 2. Juledag | N74: =DATE(cAar,12,26) -> 2022-12-26 | Q74: 2023-03-14
C75: 2022-12-05 | D75: 1 | E75: 2022-12-05 | F75: 0 | I75: 0 | J75: 45 | Q75: 2023-03-15
C76: 2022-12-06 | D76: 2 | E76: 2022-12-06 | F76: 0 | I76: 0 | J76: 46 | M76: Egne merkedager: | Q76: 2023-03-16
C77: 2022-12-07 | D77: 3 | E77: 2022-12-07 | F77: 0 | I77: 0 | J77: 47 | Q77: 2023-03-17
B78: =IF(J78=$C$4,"Til","") ->  | C78: 2022-12-08 | D78: 4 | E78: =C78 -> 2022-12-08 | F78: =IF(C78="","",IFERROR(MATCH(C78,INDEX(caHellig,,2),0),0)) -> 0 | G78: =IF(C78="","",IF(F78>0,INDEX(caHellig,F78,2),"")) ->  | H78: =IF(C78="","",IF(F78>0,INDEX(caHellig,F78,1),"")) ->  | I78: =IF(C78="","",IF(OR(D78>5,F78,0),1,0)) -> 0 | J78: =IF(C78="","",IF(I78=0,J77+1,J77)) -> 48 | Q78: 2023-03-18
C79: =C78+1 -> 2022-12-09 | D79: =IF(C79<>"",WEEKDAY(C79,2),"") -> 5 | E79: 2022-12-09 | F79: 0 | I79: 0 | J79: 49 | Q79: =Q78+1 -> 2023-03-19
C80: 2022-12-10 | D80: 6 | E80: 2022-12-10 | F80: 0 | I80: 1 | J80: 49 | Q80: 2023-03-20
C81: 2022-12-11 | D81: 7 | E81: 2022-12-11 | F81: 0 | I81: 1 | J81: 49 | Q81: 2023-03-21
C82: 2022-12-12 | D82: 1 | E82: 2022-12-12 | F82: 0 | I82: 0 | J82: 50 | Q82: 2023-03-22
C83: 2022-12-13 | D83: 2 | E83: 2022-12-13 | F83: 0 | I83: 0 | J83: 51 | Q83: 2023-03-23
C84: 2022-12-14 | D84: 3 | E84: 2022-12-14 | F84: 0 | I84: 0 | J84: 52 | Q84: 2023-03-24
C85: 2022-12-15 | D85: 4 | E85: 2022-12-15 | F85: 0 | I85: 0 | J85: 53 | Q85: 2023-03-25
C86: 2022-12-16 | D86: 5 | E86: 2022-12-16 | F86: 0 | I86: 0 | J86: 54 | Q86: 2023-03-26
C87: 2022-12-17 | D87: 6 | E87: 2022-12-17 | F87: 0 | I87: 1 | J87: 54 | Q87: 2023-03-27
C88: 2022-12-18 | D88: 7 | E88: 2022-12-18 | F88: 0 | I88: 1 | J88: 54 | Q88: 2023-03-28
C89: 2022-12-19 | D89: 1 | E89: 2022-12-19 | F89: 0 | I89: 0 | J89: 55 | Q89: 2023-03-29
C90: 2022-12-20 | D90: 2 | E90: 2022-12-20 | F90: 0 | I90: 0 | J90: 56 | Q90: 2023-03-30
C91: 2022-12-21 | D91: 3 | E91: 2022-12-21 | F91: 0 | I91: 0 | J91: 57 | Q91: 2023-03-31
C92: 2022-12-22 | D92: 4 | E92: 2022-12-22 | F92: 0 | I92: 0 | J92: 58 | Q92: 2023-04-01
C93: 2022-12-23 | D93: 5 | E93: 2022-12-23 | F93: 0 | I93: 0 | J93: 59 | Q93: 2023-04-02
C94: 2022-12-24 | D94: 6 | E94: 2022-12-24 | F94: 17 | G94: 2022-12-24 | H94: Julaften | I94: 1 | J94: 59 | Q94: 2023-04-03
C95: 2022-12-25 | D95: 7 | E95: 2022-12-25 | F95: 18 | G95: 2022-12-25 | H95: 1. Juledag | I95: 1 | J95: 59 | Q95: 2023-04-04
C96: 2022-12-26 | D96: 1 | E96: 2022-12-26 | F96: 19 | G96: 2022-12-26 | H96: 2. Juledag | I96: 1 | J96: 59 | Q96: 2023-04-05
C97: 2022-12-27 | D97: 2 | E97: 2022-12-27 | F97: 0 | I97: 0 | J97: 60 | Q97: 2023-04-06
C98: 2022-12-28 | D98: 3 | E98: 2022-12-28 | F98: 0 | I98: 0 | J98: 61 | Q98: 2023-04-07
C99: 2022-12-29 | D99: 4 | E99: 2022-12-29 | F99: 0 | I99: 0 | J99: 62 | Q99: 2023-04-08
C100: 2022-12-30 | D100: 5 | E100: 2022-12-30 | F100: 0 | I100: 0 | J100: 63 | Q100: 2023-04-09
C101: 2022-12-31 | D101: 6 | E101: 2022-12-31 | F101: 0 | I101: 1 | J101: 63 | Q101: 2023-04-10
C102: 2023-01-01 | D102: 7 | E102: 2023-01-01 | F102: 0 | I102: 1 | J102: 63 | Q102: 2023-04-11
C103: 2023-01-02 | D103: 1 | E103: 2023-01-02 | F103: 0 | I103: 0 | J103: 64 | Q103: 2023-04-12
C104: 2023-01-03 | D104: 2 | E104: 2023-01-03 | F104: 0 | I104: 0 | J104: 65 | Q104: 2023-04-13
C105: 2023-01-04 | D105: 3 | E105: 2023-01-04 | F105: 0 | I105: 0 | J105: 66 | Q105: 2023-04-14
C106: 2023-01-05 | D106: 4 | E106: 2023-01-05 | F106: 0 | I106: 0 | J106: 67 | Q106: 2023-04-15
C107: 2023-01-06 | D107: 5 | E107: 2023-01-06 | F107: 0 | I107: 0 | J107: 68 | Q107: 2023-04-16
C108: 2023-01-07 | D108: 6 | E108: 2023-01-07 | F108: 0 | I108: 1 | J108: 68 | Q108: 2023-04-17
C109: 2023-01-08 | D109: 7 | E109: 2023-01-08 | F109: 0 | I109: 1 | J109: 68 | Q109: 2023-04-18
C110: 2023-01-09 | D110: 1 | E110: 2023-01-09 | F110: 0 | I110: 0 | J110: 69 | Q110: 2023-04-19
C111: 2023-01-10 | D111: 2 | E111: 2023-01-10 | F111: 0 | I111: 0 | J111: 70 | Q111: 2023-04-20
C112: 2023-01-11 | D112: 3 | E112: 2023-01-11 | F112: 0 | I112: 0 | J112: 71 | Q112: 2023-04-21
C113: 2023-01-12 | D113: 4 | E113: 2023-01-12 | F113: 0 | I113: 0 | J113: 72 | Q113: 2023-04-22
C114: 2023-01-13 | D114: 5 | E114: 2023-01-13 | F114: 0 | I114: 0 | J114: 73 | Q114: 2023-04-23
C115: 2023-01-14 | D115: 6 | E115: 2023-01-14 | F115: 0 | I115: 1 | J115: 73 | Q115: 2023-04-24
C116: 2023-01-15 | D116: 7 | E116: 2023-01-15 | F116: 0 | I116: 1 | J116: 73 | Q116: 2023-04-25
C117: 2023-01-16 | D117: 1 | E117: 2023-01-16 | F117: 0 | I117: 0 | J117: 74 | Q117: 2023-04-26
C118: 2023-01-17 | D118: 2 | E118: 2023-01-17 | F118: 0 | I118: 0 | J118: 75 | Q118: 2023-04-27
C119: 2023-01-18 | D119: 3 | E119: 2023-01-18 | F119: 0 | I119: 0 | J119: 76 | Q119: 2023-04-28
C120: 2023-01-19 | D120: 4 | E120: 2023-01-19 | F120: 0 | I120: 0 | J120: 77 | Q120: 2023-04-29
C121: 2023-01-20 | D121: 5 | E121: 2023-01-20 | F121: 0 | I121: 0 | J121: 78 | Q121: 2023-04-30
C122: 2023-01-21 | D122: 6 | E122: 2023-01-21 | F122: 0 | I122: 1 | J122: 78 | Q122: 2023-05-01
C123: 2023-01-22 | D123: 7 | E123: 2023-01-22 | F123: 0 | I123: 1 | J123: 78 | Q123: 2023-05-02
C124: 2023-01-23 | D124: 1 | E124: 2023-01-23 | F124: 0 | I124: 0 | J124: 79 | Q124: 2023-05-03
C125: 2023-01-24 | D125: 2 | E125: 2023-01-24 | F125: 0 | I125: 0 | J125: 80 | Q125: 2023-05-04
C126: 2023-01-25 | D126: 3 | E126: 2023-01-25 | F126: 0 | I126: 0 | J126: 81 | Q126: 2023-05-05
C127: 2023-01-26 | D127: 4 | E127: 2023-01-26 | F127: 0 | I127: 0 | J127: 82 | Q127: 2023-05-06
C128: 2023-01-27 | D128: 5 | E128: 2023-01-27 | F128: 0 | I128: 0 | J128: 83 | Q128: 2023-05-07
C129: 2023-01-28 | D129: 6 | E129: 2023-01-28 | F129: 0 | I129: 1 | J129: 83 | Q129: 2023-05-08
C130: 2023-01-29 | D130: 7 | E130: 2023-01-29 | F130: 0 | I130: 1 | J130: 83 | Q130: 2023-05-09
C131: 2023-01-30 | D131: 1 | E131: 2023-01-30 | F131: 0 | I131: 0 | J131: 84 | Q131: 2023-05-10
C132: 2023-01-31 | D132: 2 | E132: 2023-01-31 | F132: 0 | I132: 0 | J132: 85 | Q132: 2023-05-11
C133: 2023-02-01 | D133: 3 | E133: 2023-02-01 | F133: 0 | I133: 0 | J133: 86 | Q133: 2023-05-12
C134: 2023-02-02 | D134: 4 | E134: 2023-02-02 | F134: 0 | I134: 0 | J134: 87 | Q134: 2023-05-13
C135: 2023-02-03 | D135: 5 | E135: 2023-02-03 | F135: 0 | I135: 0 | J135: 88 | Q135: 2023-05-14
C136: 2023-02-04 | D136: 6 | E136: 2023-02-04 | F136: 0 | I136: 1 | J136: 88 | Q136: 2023-05-15
C137: 2023-02-05 | D137: 7 | E137: 2023-02-05 | F137: 0 | I137: 1 | J137: 88 | Q137: 2023-05-16
C138: 2023-02-06 | D138: 1 | E138: 2023-02-06 | F138: 0 | I138: 0 | J138: 89 | Q138: 2023-05-17
C139: 2023-02-07 | D139: 2 | E139: 2023-02-07 | F139: 0 | I139: 0 | J139: 90 | Q139: 2023-05-18
C140: 2023-02-08 | D140: 3 | E140: 2023-02-08 | F140: 0 | I140: 0 | J140: 91 | Q140: 2023-05-19
C141: 2023-02-09 | D141: 4 | E141: 2023-02-09 | F141: 0 | I141: 0 | J141: 92 | Q141: 2023-05-20
B142: =IF(J142=$C$4,"Til","") ->  | C142: 2023-02-10 | D142: 5 | E142: =C142 -> 2023-02-10 | F142: =IF(C142="","",IFERROR(MATCH(C142,INDEX(caHellig,,2),0),0)) -> 0 | G142: =IF(C142="","",IF(F142>0,INDEX(caHellig,F142,2),"")) ->  | H142: =IF(C142="","",IF(F142>0,INDEX(caHellig,F142,1),"")) ->  | I142: =IF(C142="","",IF(OR(D142>5,F142,0),1,0)) -> 0 | J142: =IF(C142="","",IF(I142=0,J141+1,J141)) -> 93 | Q142: 2023-05-21
C143: =C142+1 -> 2023-02-11 | D143: =IF(C143<>"",WEEKDAY(C143,2),"") -> 6 | E143: 2023-02-11 | F143: 0 | I143: 1 | J143: 93 | Q143: =Q142+1 -> 2023-05-22
C144: 2023-02-12 | D144: 7 | E144: 2023-02-12 | F144: 0 | I144: 1 | J144: 93 | Q144: 2023-05-23
C145: 2023-02-13 | D145: 1 | E145: 2023-02-13 | F145: 0 | I145: 0 | J145: 94 | Q145: 2023-05-24
C146: 2023-02-14 | D146: 2 | E146: 2023-02-14 | F146: 0 | I146: 0 | J146: 95 | Q146: 2023-05-25
C147: 2023-02-15 | D147: 3 | E147: 2023-02-15 | F147: 0 | I147: 0 | J147: 96 | Q147: 2023-05-26
C148: 2023-02-16 | D148: 4 | E148: 2023-02-16 | F148: 0 | I148: 0 | J148: 97 | Q148: 2023-05-27
C149: 2023-02-17 | D149: 5 | E149: 2023-02-17 | F149: 0 | I149: 0 | J149: 98 | Q149: 2023-05-28
C150: 2023-02-18 | D150: 6 | E150: 2023-02-18 | F150: 0 | I150: 1 | J150: 98 | Q150: 2023-05-29
C151: 2023-02-19 | D151: 7 | E151: 2023-02-19 | F151: 0 | I151: 1 | J151: 98 | Q151: 2023-05-30
C152: 2023-02-20 | D152: 1 | E152: 2023-02-20 | F152: 0 | I152: 0 | J152: 99 | Q152: 2023-05-31
C153: 2023-02-21 | D153: 2 | E153: 2023-02-21 | F153: 0 | I153: 0 | J153: 100 | Q153: 2023-06-01
C154: 2023-02-22 | D154: 3 | E154: 2023-02-22 | F154: 0 | I154: 0 | J154: 101 | Q154: 2023-06-02
C155: 2023-02-23 | D155: 4 | E155: 2023-02-23 | F155: 0 | I155: 0 | J155: 102 | Q155: 2023-06-03
C156: 2023-02-24 | D156: 5 | E156: 2023-02-24 | F156: 0 | I156: 0 | J156: 103 | Q156: 2023-06-04
C157: 2023-02-25 | D157: 6 | E157: 2023-02-25 | F157: 0 | I157: 1 | J157: 103 | Q157: 2023-06-05
C158: 2023-02-26 | D158: 7 | E158: 2023-02-26 | F158: 0 | I158: 1 | J158: 103 | Q158: 2023-06-06
C159: 2023-02-27 | D159: 1 | E159: 2023-02-27 | F159: 0 | I159: 0 | J159: 104 | Q159: 2023-06-07
C160: 2023-02-28 | D160: 2 | E160: 2023-02-28 | F160: 0 | I160: 0 | J160: 105 | Q160: 2023-06-08
C161: 2023-03-01 | D161: 3 | E161: 2023-03-01 | F161: 0 | I161: 0 | J161: 106 | Q161: 2023-06-09
C162: 2023-03-02 | D162: 4 | E162: 2023-03-02 | F162: 0 | I162: 0 | J162: 107 | Q162: 2023-06-10
C163: 2023-03-03 | D163: 5 | E163: 2023-03-03 | F163: 0 | I163: 0 | J163: 108 | Q163: 2023-06-11
C164: 2023-03-04 | D164: 6 | E164: 2023-03-04 | F164: 0 | I164: 1 | J164: 108 | Q164: 2023-06-12
C165: 2023-03-05 | D165: 7 | E165: 2023-03-05 | F165: 0 | I165: 1 | J165: 108 | Q165: 2023-06-13
C166: 2023-03-06 | D166: 1 | E166: 2023-03-06 | F166: 0 | I166: 0 | J166: 109 | Q166: 2023-06-14
C167: 2023-03-07 | D167: 2 | E167: 2023-03-07 | F167: 0 | I167: 0 | J167: 110 | Q167: 2023-06-15
C168: 2023-03-08 | D168: 3 | E168: 2023-03-08 | F168: 0 | I168: 0 | J168: 111 | Q168: 2023-06-16
C169: 2023-03-09 | D169: 4 | E169: 2023-03-09 | F169: 0 | I169: 0 | J169: 112 | Q169: 2023-06-17
C170: 2023-03-10 | D170: 5 | E170: 2023-03-10 | F170: 0 | I170: 0 | J170: 113 | Q170: 2023-06-18
C171: 2023-03-11 | D171: 6 | E171: 2023-03-11 | F171: 0 | I171: 1 | J171: 113 | Q171: 2023-06-19
C172: 2023-03-12 | D172: 7 | E172: 2023-03-12 | F172: 0 | I172: 1 | J172: 113 | Q172: 2023-06-20
C173: 2023-03-13 | D173: 1 | E173: 2023-03-13 | F173: 0 | I173: 0 | J173: 114 | Q173: 2023-06-21
C174: 2023-03-14 | D174: 2 | E174: 2023-03-14 | F174: 0 | I174: 0 | J174: 115 | Q174: 2023-06-22
C175: 2023-03-15 | D175: 3 | E175: 2023-03-15 | F175: 0 | I175: 0 | J175: 116 | Q175: 2023-06-23
C176: 2023-03-16 | D176: 4 | E176: 2023-03-16 | F176: 0 | I176: 0 | J176: 117 | Q176: 2023-06-24
C177: 2023-03-17 | D177: 5 | E177: 2023-03-17 | F177: 0 | I177: 0 | J177: 118 | Q177: 2023-06-25
C178: 2023-03-18 | D178: 6 | E178: 2023-03-18 | F178: 0 | I178: 1 | J178: 118 | Q178: 2023-06-26
C179: 2023-03-19 | D179: 7 | E179: 2023-03-19 | F179: 0 | I179: 1 | J179: 118 | Q179: 2023-06-27
C180: 2023-03-20 | D180: 1 | E180: 2023-03-20 | F180: 0 | I180: 0 | J180: 119 | Q180: 2023-06-28
C181: 2023-03-21 | D181: 2 | E181: 2023-03-21 | F181: 0 | I181: 0 | J181: 120 | Q181: 2023-06-29
C182: 2023-03-22 | D182: 3 | E182: 2023-03-22 | F182: 0 | I182: 0 | J182: 121 | Q182: 2023-06-30
C183: 2023-03-23 | D183: 4 | E183: 2023-03-23 | F183: 0 | I183: 0 | J183: 122 | Q183: 2023-07-01
C184: 2023-03-24 | D184: 5 | E184: 2023-03-24 | F184: 0 | I184: 0 | J184: 123 | Q184: 2023-07-02
C185: 2023-03-25 | D185: 6 | E185: 2023-03-25 | F185: 0 | I185: 1 | J185: 123 | Q185: 2023-07-03
C186: 2023-03-26 | D186: 7 | E186: 2023-03-26 | F186: 0 | I186: 1 | J186: 123 | Q186: 2023-07-04
C187: 2023-03-27 | D187: 1 | E187: 2023-03-27 | F187: 0 | I187: 0 | J187: 124 | Q187: 2023-07-05
C188: 2023-03-28 | D188: 2 | E188: 2023-03-28 | F188: 0 | I188: 0 | J188: 125 | Q188: 2023-07-06
C189: 2023-03-29 | D189: 3 | E189: 2023-03-29 | F189: 0 | I189: 0 | J189: 126 | Q189: 2023-07-07
C190: 2023-03-30 | D190: 4 | E190: 2023-03-30 | F190: 0 | I190: 0 | J190: 127 | Q190: 2023-07-08
C191: 2023-03-31 | D191: 5 | E191: 2023-03-31 | F191: 0 | I191: 0 | J191: 128 | Q191: 2023-07-09
C192: 2023-04-01 | D192: 6 | E192: 2023-04-01 | F192: 0 | I192: 1 | J192: 128 | Q192: 2023-07-10
C193: 2023-04-02 | D193: 7 | E193: 2023-04-02 | F193: 25 | G193: 2023-04-02 | H193: Palmesøndag | I193: 1 | J193: 128 | Q193: 2023-07-11
C194: 2023-04-03 | D194: 1 | E194: 2023-04-03 | F194: 0 | I194: 0 | J194: 129 | Q194: 2023-07-12
C195: 2023-04-04 | D195: 2 | E195: 2023-04-04 | F195: 0 | I195: 0 | J195: 130 | Q195: 2023-07-13
C196: 2023-04-05 | D196: 3 | E196: 2023-04-05 | F196: 0 | I196: 0 | J196: 131 | Q196: 2023-07-14
C197: 2023-04-06 | D197: 4 | E197: 2023-04-06 | F197: 26 | G197: 2023-04-06 | H197: Skjærtorsdag | I197: 1 | J197: 131 | Q197: 2023-07-15
C198: 2023-04-07 | D198: 5 | E198: 2023-04-07 | F198: 27 | G198: 2023-04-07 | H198: Langfredag | I198: 1 | J198: 131 | Q198: 2023-07-16
C199: 2023-04-08 | D199: 6 | E199: 2023-04-08 | F199: 28 | G199: 2023-04-08 | H199: Påskeaften | I199: 1 | J199: 131 | Q199: 2023-07-17
C200: 2023-04-09 | D200: 7 | E200: 2023-04-09 | F200: 29 | G200: 2023-04-09 | H200: 1. Påskedag | I200: 1 | J200: 131 | Q200: 2023-07-18
C201: 2023-04-10 | D201: 1 | E201: 2023-04-10 | F201: 30 | G201: 2023-04-10 | H201: 2. Påskedag | I201: 1 | J201: 131 | Q201: 2023-07-19
C202: 2023-04-11 | D202: 2 | E202: 2023-04-11 | F202: 0 | I202: 0 | J202: 132 | Q202: 2023-07-20
C203: 2023-04-12 | D203: 3 | E203: 2023-04-12 | F203: 0 | I203: 0 | J203: 133 | Q203: 2023-07-21
C204: 2023-04-13 | D204: 4 | E204: 2023-04-13 | F204: 0 | I204: 0 | J204: 134 | Q204: 2023-07-22
C205: 2023-04-14 | D205: 5 | E205: 2023-04-14 | F205: 0 | I205: 0 | J205: 135 | Q205: 2023-07-23
... 433 more rows
